Cogmind - Beta 13 @@@ ROGUE MODE // 2024.05.13 @ 12:47:41 Player: anthonyiye Result: Destroyed by DAS Turret with DAS Cannon Performance ------------- Evolutions (1) 500 Regions Visited (5) 1000 Robots Destroyed (46) 230 Value Destroyed (1120) 1120 Prototype IDs (3) 60 Alien Tech Used (0) 0 Bonus (292) 292 TOTAL SCORE: 3202 Bonus ------- Aligned with FarCom 300 Friendly Fire -8 Cogmind --------- Core Integrity 0/400 Matter 216/300 Energy 100/100 System Corruption 1% Temperature Cool (0) Movement Core (700) Ox13 Location -9/Exiles Parts ------- > --- POWER (1) -------- (None) > --- PROPULSION (3) --- (None) > --- UTILITY (3) ------ High-capacity Storage Unit Structural Scanner Signal Interpreter > --- WEAPON (2) ------- (None) > --- INVENTORY (20) --- Light Nuclear Core Light Nuclear Core Fission Core Improved Treads Improved Treads Improved Treads Flexi-carbon Leg Signal Interpreter Armor Integrity Analyzer High-powered Tractor Beam Light Assault Rifle Bore Cannon Katana Katana Katana Longsword +1 Peak State ------------ > --- POWER ------------ Light Nuclear Core > --- PROPULSION ------- Carbon-fiber Leg Carbon-fiber Leg Carbon-fiber Leg > --- UTILITY ---------- High-capacity Storage Unit Structural Scanner Signal Interpreter > --- WEAPON ----------- Light Assault Rifle Longsword +1 > --- INVENTORY -------- Light Nuclear Core Fission Core Improved Treads Improved Treads Improved Treads Carbon-fiber Leg Flexi-carbon Leg Signal Interpreter Armor Integrity Analyzer High-powered Tractor Beam Bore Cannon Rocket Launcher Katana Katana Katana Katana [Rating: 28] Favorites ----------- Power Light Nuclear Core Engine Light Ion Engine Power Core Light Nuclear Core Propulsion Carbon-fiber Leg Treads Light Treads Leg Carbon-fiber Leg Wheel Wheel Utility High-capacity Storage Unit Device Improved Heat Sink Storage High-capacity Storage Unit Processor Signal Interpreter Weapon Light Assault Rifle Energy Gun Particle Gun Ballistic Gun Light Assault Rifle Launcher Grenade Launcher Slashing Weapon Katana Build | -11 -10 -10 -9 -9 -9 ------- Run | Yrd Mat Min Mat Min Exi Slots Evolved 2 | . . . 2 . . Power . | . . . . . . Propulsion 1 | . . . 1 . . Utility 1 | . . . 1 . . Weapon . | . . . . . . Parts Attached 43 | 6 9 6 15 3 4 Power 6 | 1 2 1 1 1 . Engine 3 | 1 2 . . . . Core 3 | . . 1 1 1 . Reactor . | . . . . . . Propulsion 14 | 2 2 2 7 . 1 Treads 2 | 2 . . . . . Leg 4 | . . . 3 . 1 Wheel 8 | . 2 2 4 . . Hover . | . . . . . . Flight . | . . . . . . Utility 7 | 1 2 1 2 1 . Device 3 | . 1 . 1 1 . Storage 3 | 1 1 1 . . . Processor 1 | . . . 1 . . Hackware . | . . . . . . Protection . | . . . . . . Artifact . | . . . . . . Weapon 16 | 2 3 2 5 1 3 Energy Gun 2 | . 2 . . . . Energy Cannon . | . . . . . . Ballistic Gun 7 | 2 . 1 3 1 . Ballistic Cannon . | . . . . . . Launcher 4 | . 1 1 1 . 1 Special Weapon . | . . . . . . Impact Weapon . | . . . . . . Slashing Weapon 3 | . . . 1 . 2 Piercing Weapon . | . . . . . . Special Melee Weapon . | . . . . . . Unidentified Prototypes 1 | . . . . . 1 Parts Lost 24 | . 4 4 9 1 6 Power 2 | . 1 . 1 . . Propulsion 12 | . 1 2 5 . 4 Utility 1 | . . . 1 . . Weapon 9 | . 2 2 2 1 2 Highest Loss Streak 6 | . 4 2 4 1 6 To Critical Strikes 3 | . . . . 1 2 Average Slot Usage (%) 88 | . 94 99 80 83 99 Engine 4 | . 14 9 . . . Core 4 | . . 4 5 2 10 Treads 2 | . 11 . . . . Leg 11 | . . . 11 33 32 Wheel 14 | . 15 27 15 . . Device 7 | . 10 14 3 4 11 Storage 12 | . 14 14 11 11 11 Processor 6 | . . . 10 11 11 Energy Gun 5 | . 15 13 . . . Ballistic Gun 12 | . 10 3 17 9 9 Launcher 2 | . 1 11 . . 1 Slashing Weapon 3 | . . . 3 11 11 Naked Turns . | . . . . . . Heaviest Build 52 | 12 20 52 51 49 52 Greatest Support 45 | 40 40 32 45 45 45 Greatest Overweight (x) 5 | . . 2 5 1 2 Average Overweight (x) . | . . . 1 . . Largest Inventory Capacity 20 | 8 10 20 20 20 20 Average Capacity 16 | 7 8 13 20 20 20 Most Carried 20 | 6 10 14 20 20 17 Average Carried 14 | 3 7 10 18 18 16 Final Capacity 20 | 8 10 20 20 20 20 Final Carried 20 | 6 10 14 20 17 16 Class Distribution -------------------- 78% | Mutant 21% | Scavenger-Mutant Dominant Class ---------------- Mutant | -10/Materials Mutant | -10/Mines Mutant | -9/Materials Mutant | -9/Mines Mutant | -9/Exiles Resources | -11 -10 -10 -9 -9 -9 ----------- Run | Yrd Mat Min Mat Min Exi Matter Collected 1024 | 216 164 113 502 27 2 Remotely . | . . . . . . Salvage Created 1216 | . 373 58 717 47 21 Parts 88 | . 28 3 50 7 . Haulers Intercepted 1 | . 1 . . . . Recyclers Shooed 2 | . 2 . . . . Parts Field Recycled . | . . . . . . Retrieved Matter . | . . . . . . Parts Self-Destructed . | . . . . . . Prevented . | . . . . . . Kills | -11 -10 -10 -9 -9 -9 ------- Run | Yrd Mat Min Mat Min Exi Combat Hostiles Destroyed 51 | . 13 5 23 3 7 Melee 5 | . 2 . 1 2 . Guns 33 | . 11 2 19 1 . AOE 13 | . . 3 3 . 7 Classes Destroyed 8 | . 4 1 3 . . Hauler 1 | . 1 . . . . Operator 2 | . 1 . 1 . . Watcher 2 | . . . 2 . . Swarmer 18 | . 6 . 9 3 . Grunt 18 | . 7 2 9 . . Brawler 1 | . . . 1 . . Sentry 4 | . . . 4 . . Assembled 10 | . . 3 . . 7 Best Kill Streak 7 | . 6 2 6 3 7 Combat Bots Only 7 | . 6 2 5 3 7 Max Kills in Single Turn 4 | . 2 1 1 1 4 Gunslinging 1 | . 1 . . . . Exploded 4 | . . 1 1 . 4 Melee 1 | . 1 . 1 1 . Uniques/NPCs Destroyed . | . . . . . . Combat | -11 -10 -10 -9 -9 -9 -------- Run | Yrd Mat Min Mat Min Exi Hostile Shots Fired 315 | . 99 15 124 41 36 Missed 87 | . 25 3 42 10 7 Damage Taken 2909 | . 764 310 959 245 631 Core 615 | . 155 58 143 70 189 Absorbed by Shields . | . . . . . . Core Remaining (%) 57 | 100 . 14 . . . Volleys Fired 136 | . 50 10 63 8 5 Largest 2 | . 2 2 2 1 1 Hottest 105 | . 105 95 53 23 33 Shots Fired 252 | . 98 19 121 8 6 Gun 235 | . 97 13 116 8 1 Cannon . | . . . . . . Launcher 17 | . 1 6 5 . 5 Special . | . . . . . . Kinetic 192 | . 60 7 116 8 1 Thermal 27 | . 21 6 . . . Explosive 17 | . 1 6 5 . 5 Electromagnetic 16 | . 16 . . . . Robot Hit Streak 12 | . 12 6 11 3 1 Robot Miss Streak 8 | . 6 2 8 2 3 Penetration Max . | . . . . . . Secondary Targets 2 | . 1 . 1 . . Max Gunslinging Chain 1 | . 1 . 1 . . Shots Hit Robots 176 | . 65 12 88 9 2 Core Hits 96 | . 27 11 43 4 11 Critical Kills . | . . . . . . Critical Parts Destroyed . | . . . . . . Critical Strikes 1 | . 1 . . . . Burn 1 | . 1 . . . . Melee Attacks 12 | . . . 4 8 . Impact . | . . . . . . Slashing 12 | . . . 4 8 . Piercing . | . . . . . . Sneak Attacks 1 | . . . 1 . . Combat Hostiles . | . . . . . . Follow-up Attacks . | . . . . . . Damage Inflicted 3100 | . 744 366 1485 192 313 Guns 1883 | . 713 71 1044 55 . Cannons . | . . . . . . Explosions 860 | . . 283 264 . 313 Melee 242 | . . . 105 137 . Ramming 115 | . 31 12 72 . . Kinetic 1453 | . 328 26 1044 55 . Thermal 261 | . 216 45 . . . Explosive 860 | . . 283 264 . 313 Electromagnetic 169 | . 169 . . . . Impact . | . . . . . . Slashing 242 | . . . 105 137 . Piercing . | . . . . . . Highest Corruption 1 | . . . 1 1 1 Average Corruption 1 | . . . 1 1 1 Corruption Purged . | . . . . . . Corruption Blocked . | . . . . . . Effects 11 | . . . 6 1 4 Message Errors 5 | . . . 2 . 3 Matter Fused 2 | . . . 2 . . Energy Discharges 1 | . . . 1 . . Data Loss (major) 1 | . . . . 1 . Misfires 2 | . . . 1 . 1 Overload Shots . | . . . . . . Overflow Damage 57 | . . 5 36 16 . Projectiles . | . . . . . . Explosions 5 | . . 5 . . . Melee 52 | . . . 36 16 . Knockbacks 1 | . . . 1 . . Impact 1 | . . . 1 . . Kinetic . | . . . . . . Secondary . | . . . . . . Self-Inflicted Damage 196 | . 50 75 71 . . Shots 5 | . 2 2 1 . . Rammed 24 | . 17 2 5 . . Targets Rammed 26 | . 19 2 5 . . Kicked . | . . . . . . Crushed 2 | . 2 . . . . Highest Temperature 29 | . 28 29 18 . 15 Average Temperature 8 | . 7 11 8 . 10 Received Heat Transfer 581 | . 207 69 285 . 20 Siege Activations . | . . . . . . Robots Corrupted . | . . . . . . Combat Hostiles . | . . . . . . Parts Fried . | . . . . . . Impact Corruptions 1 | . . . 1 . . Robots Melted . | . . . . . . Combat Hostiles . | . . . . . . Parts Melted 2 | . 2 . . . . Heat Transferred 703 | . 592 111 . . . Parts Sabotaged . | . . . . . . Parts Stolen . | . . . . . . Parts Stripped . | . . . . . . Power Chain Reactions 1 | . 1 . . . . Alert | -11 -10 -10 -9 -9 -9 ------- Run | Yrd Mat Min Mat Min Exi Peak Influence 300 | . 300 69 271 210 . Initial 105 | . . 64 26 105 . Average 142 | . 141 56 171 168 . Maximum Alert Level 1 | . 1 . 1 1 . Low Security (%) 73 | 100 78 100 67 44 . Level 1 26 | . 21 . 32 55 . Level 2 . | . . . . . . Level 3 . | . . . . . . Level 4 . | . . . . . . Level 5 . | . . . . . . High Security . | . . . . . . Max Security . | . . . . . . Squads Dispatched 6 | . 1 . 5 . . Investigation 3 | . 1 . 2 . . Extermination . | . . . . . . Reinforcement 3 | . . . 3 . . Assault . | . . . . . . Garrison . | . . . . . . Intercept . | . . . . . . Searches Triggered . | . . . . . . Construction Impeded . | . . . . . . Haulers Reinforced . | . . . . . . Active Scanning Responses . | . . . . . . Cargo Convoy Interrupts . | . . . . . . Stealth | -11 -10 -10 -9 -9 -9 --------- Run | Yrd Mat Min Mat Min Exi Distress Signals 4 | . 1 . 3 . . Communications Jammed . | . . . . . . Distress Signals . | . . . . . . Times Spotted 81 | . 21 6 39 7 8 Peak Tracking Total 9 | . 7 2 5 3 9 Tactical Retreats 6 | . . 2 2 1 1 Traps | -11 -10 -10 -9 -9 -9 ------- Run | Yrd Mat Min Mat Min Exi Traps Triggered 2 | . 1 . 1 . . Indirectly . | . . . . . . Trap Hack Attempts . | . . . . . . Triggered . | . . . . . . Disarmed . | . . . . . . Reprogrammed . | . . . . . . Reused . | . . . . . . Traps Extracted . | . . . . . . Installed . | . . . . . . Triggered . | . . . . . . Machines | -11 -10 -10 -9 -9 -9 ---------- Run | Yrd Mat Min Mat Min Exi Machines Disabled 6 | . . . 2 . 4 Max in Single Turn 2 | . . . 1 . 2 Machines Repaired . | . . . . . . Machines Dismantled . | . . . . . . Machines Sabotaged . | . . . . . . Overloaded Fab Kills . | . . . . . . Hacking | -11 -10 -10 -9 -9 -9 --------- Run | Yrd Mat Min Mat Min Exi Machines Accessed 10 | . 3 . 7 . . Terminals 9 | . 3 . 6 . . Fabricators . | . . . . . . Repair Stations . | . . . . . . Recycling Units . | . . . . . . Scanalyzers 1 | . . . 1 . . Garrison Access . | . . . . . . Total Hacks 34 | . 6 . 28 . . Successful 10 | . 2 . 8 . . Failed 24 | . 4 . 20 . . Catastrophic 8 | . 2 . 6 . . Database Lockouts . | . . . . . . Manual 17 | . 1 . 15 . 1 Terminals 29 | . 6 . 23 . . Fabricators . | . . . . . . Repair Stations . | . . . . . . Recycling Units . | . . . . . . Scanalyzers 5 | . . . 5 . . Garrison Access . | . . . . . . Terminal Hacks 6 | . 2 . 4 . . Record 1 | . 1 . . . . Prototype ID Bank 1 | . 1 . . . . Emergency Access Points 1 | . . . 1 . . Terminal Index 1 | . . . 1 . . Maintenance Status 1 | . . . 1 . . Registered Prototypes 1 | . . . 1 . . Fabricator Hacks . | . . . . . . Repair Station Hacks . | . . . . . . Recycling Unit Hacks . | . . . . . . Scanalyzer 4 | . . . 4 . . Insert Component 2 | . . . 2 . . Analyze 2 | . . . 2 . . Garrison Access Hacks . | . . . . . . Unauthorized Hacks . | . . . . . . Terminals . | . . . . . . Fabricators . | . . . . . . Repair Stations . | . . . . . . Recycling Units . | . . . . . . Scanalyzers . | . . . . . . Garrison Access . | . . . . . . Data Cores Recovered 1 | . 1 . . . . Used 1 | . 1 . . . . Hacking Detections 10 | . 3 . 7 . . Full Trace Events 3 | . . . 3 . . Feedback Events 1 | . . . 1 . . Corruption 1 | . . . 1 . . Feedback Blocked . | . . . . . . Robot Schematics Acquired . | . . . . . . Robots Built . | . . . . . . Authchips . | . . . . . . Time . | . . . . . . Total Robot Build Rating . | . . . . . . Part Schematics Acquired 2 | . . . 2 . . Parts Built . | . . . . . . Authchips . | . . . . . . Time . | . . . . . . Total Part Build Rating . | . . . . . . Parts Repaired . | . . . . . . Time . | . . . . . . Parts Recycled . | . . . . . . Recycled Matter . | . . . . . . Retrieved Matter . | . . . . . . Retrieved Components . | . . . . . . Parts Scanalyzed 2 | . . . 2 . . Part Schematics Acquired 2 | . . . 2 . . Parts Damaged . | . . . . . . Bothacking | -11 -10 -10 -9 -9 -9 ------------ Run | Yrd Mat Min Mat Min Exi Used RIF Installer . | . . . . . . Robots Hacked . | . . . . . . Non-combat . | . . . . . . Combat . | . . . . . . Robot Hacks Applied . | . . . . . . Relay Couplers Released . | . . . . . . Fabnet Peak Effective % . | . . . . . . Robots Rewired . | . . . . . . Allies Hacked . | . . . . . . Hacks Repelled . | . . . . . . Allies | -11 -10 -10 -9 -9 -9 -------- Run | Yrd Mat Min Mat Min Exi Total Allies 1 | . . . . 1 . Largest Group 1 | . . . . 1 1 Highest-Rated Group 31 | . . . . 31 31 Highest-Rated Ally 31 | . . . . 31 31 Total Orders . | . . . . . . Ally Attacks . | . . . . . . Total Damage . | . . . . . . Kills . | . . . . . . Allies Corrupted . | . . . . . . Allies Melted . | . . . . . . Intel | -11 -10 -10 -9 -9 -9 ------- Run | Yrd Mat Min Mat Min Exi Robot Analysis Total . | . . . . . . Derelict Logs Recovered 4 | . . 2 . 2 . Drone Launches . | . . . . . . Drone Recoveries . | . . . . . . Exploration | -11 -10 -10 -9 -9 -9 ------------- Run | Yrd Mat Min Mat Min Exi Turns Passed 3368 | 77 666 475 1503 306 341 Spaces Moved 2326 | 43 412 420 1086 195 170 Core 5 | 5 . . . . . Treads 132 | 38 94 . . . . Legs 780 | . . . 415 195 170 Wheels 1409 | . 318 420 671 . . Hover . | . . . . . . Flight . | . . . . . . Fastest Speed 50 | 50 100 100 95 120 120 Average Speed 119 | 147 113 102 113 135 189 Slowest Speed 330 | 160 160 115 330 190 260 Overloaded Moves . | . . . . . . Propulsion Burnouts . | . . . . . . Robots Hopped . | . . . . . . Cave-ins Triggered . | . . . . . . Exploration Rate (%) 49 | 4 67 72 67 42 46 Regions Visited 5 Branch Regions 3 Pre-discovered Areas 2 | . . . . 2 . Known Exits Taken 2 | . . . 1 1 . Unknown Exits Taken 3 | 1 1 1 . . . Scrap Searched 4 | . . 3 . 1 . Spaces Dug 7 | . 7 . . . . Terrain Destroyed 87 | . 15 50 8 . 14 Melee . | . . . . . . Projectile . | . . . . . . AOE 87 | . 15 50 8 . 14 Terrain Rammed . | . . . . . . Walls Destroyed . | . . . . . . Machines Disabled . | . . . . . . Actions | -11 -10 -10 -9 -9 -9 --------- Run | Yrd Mat Min Mat Min Exi Total 2657 | 54 513 449 1237 218 186 Wait 58 | . 11 . 39 5 3 Move 2321 | 42 411 419 1085 194 170 Hop . | . . . . . . Pick Up 41 | 6 9 9 16 . 1 Fast Attach 12 | 6 1 . 5 . . Attach 20 | . 5 4 7 3 1 Detach 4 | . 1 . 2 . 1 Swap 11 | . 3 2 3 . 3 Drop 16 | . 3 3 8 . 2 Fire 136 | . 50 10 63 8 5 Melee 12 | . . . 4 8 . Ram 8 | . 1 2 5 . . Kick . | . . . . . . Crush 18 | . 18 . . . . Escape Stasis . | . . . . . . Rewire . | . . . . . . Trap . | . . . . . . Miscellaneous . | . . . . . . Route ------- -11/Scrapyard -10/Materials (discovered 2 exits: *Mat / [*Min]) -10/Mines -9/Materials (discovered 3 exits: *Mat / *Min / Sto) -9/Mines (discovered 2 exits: *Exi / *Zio) -9/Exiles History --------- Turn | Location | Event 7 | -11/Scrapyard | Discovered new exit (range 15) 78 | -11/Scrapyard | Entered Materials 316 | -10/Materials | Build established: Mutant 342 | -10/Materials | Core integrity fell below 50% 370 | -10/Materials | Lost 4 parts (1p1n2w) 454 | -10/Materials | Discovered new exit (range 14) 508 | -10/Materials | Discovered new exit (range 14) 744 | -10/Materials | Entered Mines 813 | -10/Mines | Assembled infested the area 818 | -10/Mines | Assisted by a Guerilla fighting off Assembled 1179 | -10/Mines | Received a Rocket Launcher from a helpful Derelict 1186 | -10/Mines | Core integrity fell below 20% 1208 | -10/Mines | Discovered new exit (range 5) 1219 | -10/Mines | Entered Materials 1219 | -9/Materials | Evolved 2 slots: Propulsion x1, Utility x1 1220 | -9/Materials | Identified exit to Storage 1398 | -9/Materials | Build established: Scavenger-Mutant 1754 | -9/Materials | Discovered new exit (range 16) 1763 | -9/Materials | Lost 3 parts (2n1u) 1767 | -9/Materials | Identified exit to Materials 1886 | -9/Materials | Lost 4 parts (2n2w) 2125 | -9/Materials | Build established: Mutant 2621 | -9/Materials | Discovered new exit (range 6) 2628 | -9/Materials | Identified exit to Mines 2722 | -9/Materials | Entered Mines 2723 | -9/Mines | A Derelict revealed a hidden shortcut to a safe place 2726 | -9/Mines | Identified exit to Zion 2826 | -9/Mines | Learned location of Zion (-7) 2890 | -9/Mines | Core integrity fell below 50% 2893 | -9/Mines | Escorted by a lone wolf Derelict 2913 | -9/Mines | Learned location of Storage (-9) 3021 | -9/Mines | Deemed a non-threat by the Exiles lab entrance 3021 | -9/Mines | Discovered new exit (range 5) 3026 | -9/Mines | Identified exit to Exiles 3028 | -9/Mines | Entered Exiles 3028 | -9/Exiles | Accompanied by 1 ally 3083 | -9/Exiles | Met 8R-AWN 3109 | -9/Exiles | Met EX-HEX 3174 | -9/Exiles | Met EX-BIN 3202 | -9/Exiles | Aligned with FarCom system 3203 | -9/Exiles | Given EX-Vault access code 3247 | -9/Exiles | Opened EX-Vault 3259 | -9/Exiles | Found Prototype Slashing Weapon 3260 | -9/Exiles | Identified Longsword +1 3302 | -9/Exiles | Warned to stay clear of 0b10 Research branches 3317 | -9/Exiles | Attacked by the Exiles 3359 | -9/Exiles | Destroyed 7 combat bots 3364 | -9/Exiles | Core integrity fell below 20% 3369 | -9/Exiles | Destroyed by DAS Turret with DAS Cannon Last Messages --------------- 03353_ Wall collapses. 03353_ HV Slug penetrates Machine. 03353_ HV Slug penetrates Wall. 03356_ Penetrated by HV Slug. 03356_ HV Slug penetrates Machine. 03356_ Penetrated by HV Slug. 03356_ HV Slug penetrates Machine. 03358_ Penetrated by HV Slug. 03358_ HV Slug penetrates Machine. 03358_ Penetrated by HV Slug. 03362_ Rocket Launcher destroyed. 03365_ Penetrated by HV Slug. 03365_ Carbon-fiber Leg destroyed. 03365_ Katana destroyed. 03365_ Knocked back. 03367_ Carbon-fiber Leg destroyed. 03369_ Penetrated by HV Slug. 03369_ Critical hit (Destroy). 03369_ Carbon-fiber Leg destroyed. 03369_ Penetrated by HV Slug. Map ----- +----------------------------------------------------+ | ??????????????????????##" ##??????????? | | ??????????????????????##" ## ############? | | ??????????????????????##""""""## ############? | | ??????????????????????###"###### ###"""""""##? | | ?????????????????????? "###### ###"""""""##? | | ?????????????????????????????### ###"""""""##? | | ?????????????????????????????### ###"" """"##? | | ?????????????????????????????##" """"##? | | ?????????????????????????????##" """##? | | ?????????????????????????????##" """##? | | ?????????????????????????????##" ! """##? | | ?????????????????????????????##" ! """##? | | ?????????????????????????????##" """##? | | ?????????????????????????????### """""? | | ?????????????????????????????### """##? | | ??????????????????????????????##" "X" """""? | | ??????????????????????????######" """ # ? | | ??????????????????????????######" """""""""# ? | | ????????????????"" ???????## "#" ########### ? | | ??????????????#### ########## % ###########? | | ????????????###### ########## ##?????????? | | ????????????####X# #"###" ###?######## | | ???????????? """""" ############ | | ?????????? "" " " #####"""""" | | ?????????? " " """ | | ?????????? @ % % % "" | | ?????????? % | | ?????????? | | ??????????? | | ??????????? % | | ????????????" """" | | ???????????? ##### | | ???????????? ""###### | | ????????????? """####?##### | | ????????????? """####??########" | | ?????????????? ""##????????####" | | ?????????????? ?????????????#"""" | | ??????????????? ???????????????? | | ??????????????? ????????????????? | | ????????????????? ??????????????????? | | ????????????????????????????????????? | | ????????????????????????????????????? " | | ?????????????????????????????????????"" """ | | ??????????????????????????????????????"" " " ""#" | | ???????????????????????????????????????##""" """## | | ???????????????????????????????????????###?""??### | | ????????????????????????????????????????????????## | | ?????????????????????????????????????????????????? | | ?????????????????????????????????????????????????? | | ?????????????????????????????????????????????????? | +----------------------------------------------------+ Best States ------------- Heat Dissipation 42 Energy Generation 14 Energy Capacity 250 Matter Stores 300 Matter Capacity 300 Sight Range 16 Robot Scan Range 14 Terrain Scan Density 10 Evasion (%) 55 Recoil Reduction 2 Item Schematics ----------------- Arm. Wheel | -9/Materials | Scanalyzed Flexi-carbon Leg | -9/Materials | Scanalyzed Robot Schematics ------------------ None Fabricated ------------ Nothing Alien Tech Used ----------------- None Achievements -------------- None Challenges ------------ None Game ------ Seed SapperMissileReplicator Manual? 0 Play Time 00:42:20 Cumulative 24.5 hours Start 2024.05.13 @ 12:06:31 End 2024.05.13 @ 12:47:41 Sessions 1 Manual Loads 0 Difficulty Rogue Special Mode None Game No. 20 Rogue 20 Adventurer 0 Explorer 0 Win Type - Total 1 Types 1/0/0/0/0/0/0/0/0 Lore% 19 Gallery% 23 Achievement% 25 Wizard Run 0 Options --------- Layout 1 ASCII 0 Keyboard 1 Movement Arrows Keybinds 0 Fullscreen 1 Font 32/SmallcapsGlow Map View 50x35 Zoom Use 0% Tactical HUD 1 Map Filters NONE Filters NONE Steam 0 RUN: bf862465-917f-4222-8bc1-9c041028dbdd